fUST/lending_fUST_20251119
["ID","MTS","AMOUNT","RATE_DAILY","PERIOD"]
[394406663,1763535056681,-151.0,0.00084444,15]
[394406664,1763535056691,-151.0,0.00084444,120]
[394406665,1763535056701,-151.0,0.00084444,120]
[394406666,1763535056710,-151.0,0.00084444,120]
[394406667,1763535056719,-160.070895,0.00084444,120]
[394406668,1763535056729,-231.129182,0.00084444,120]
[394406669,1763535056738,-160.070895,0.00084444,120]
[394406670,1763535056747,-231.129182,0.00084444,120]
[394406671,1763535056757,-160.070895,0.00084444,120]
[394406672,1763535056766,-259.977634,0.00084444,7]
[394406673,1763535056775,-244.943787,0.00084444,120]
[394406674,1763535056785,-231.129182,0.00084444,120]
[394406675,1763535056794,-160.0709,0.00084444,120]
[394406676,1763535056804,-244.943787,0.00084444,120]
[394406677,1763535056813,-231.12919,0.00084444,120]
[394406678,1763535056822,-259.977634,0.00084444,7]
[394406679,1763535056832,-244.943787,0.00084444,120]
[394406680,1763535056841,-259.977634,0.00084444,7]
[394406681,1763535056850,-244.943781,0.00084444,120]
[394406682,1763535056859,-259.977626,0.00084444,7]
[394406683,1763535056869,-151.0,0.00084444,120]
[394406684,1763535056882,-151.0,0.00084444,120]
[394406685,1763535056891,-151.0,0.00084444,120]
[394406686,1763535056901,-151.0,0.00084444,120]
[394406687,1763535056910,-151.0,0.00084444,120]
[394406688,1763535056921,-151.0,0.00084444,120]
[394406689,1763535056931,-151.0,0.00084444,120]
[394406690,1763535056941,-151.0,0.00084444,120]
[394406691,1763535056950,-1998.24472818,0.00085,120]
[394406692,1763535056960,-286.35,0.00085,80]
[394406693,1763535056970,-1132.720159,0.00085076,120]
[394406694,1763535056979,-200.0,0.00085388,120]
[394406695,1763535056988,-200.0,0.00085388,120]
[394406696,1763535056997,-200.0,0.00085388,120]
[394406697,1763535057006,-200.0,0.00085733,120]
[394406698,1763535057015,-200.0,0.00085733,120]
[394406699,1763535057025,-200.0,0.00085733,120]
[394406700,1763535057034,-735.4,0.00086,30]
[394406701,1763535057043,-5000.0,0.00087036,30]
[394406702,1763535057052,-5000.0,0.0009,120]
[394406703,1763535057061,-1000.0,0.0009,120]
[394406704,1763535057071,-1998.24472818,0.0009,120]
[394406705,1763535057081,-231.647,0.00090561,120]
[394406706,1763535057090,-1132.720159,0.00091564,120]
[394406707,1763535057100,-1000.0,0.00094443,120]
[394406708,1763535057109,-1068626.43815102,0.00094444,120]
[394406709,1763535057146,-710.2071187,0.00094444,120]
[394406710,1763535057196,293.08424051,0.0001,2]
[394406711,1763535057254,-420.27885834,0.00015809,2]
[394406712,1763535057263,-293.08424051,0.00022857,17]
[394406713,1763535057272,-420.27885834,0.00023414,2]
[394406714,1763535057282,-389.55659786,0.0002477,2]
[394406715,1763535057297,-8047.13648259,0.0002477,2]
[394406716,1763535057306,-8436.69308045,0.00024829,2]
[394406717,1763535057316,-8436.69308045,0.00024887,2]
[394406718,1763535057326,-151.0,0.00028273,2]
[394406719,1763535057335,-500.0,0.00028273,2]
[394406720,1763535057344,-151.0,0.000283,2]
[394406721,1763535057353,-151.0,0.00028328,2]
[394406722,1763535057363,-151.0,0.00028328,2]
[394406723,1763535057372,-159.24956226,0.00028355,2]
[394406724,1763535057381,-239.03213784,0.00028355,2]
[394406725,1763535057391,-293.08424051,0.00035714,32]
[394406726,1763535057399,-101722.37050349,0.00094444,120]
[394406727,1763535057427,-295.589,0.0002193,2]
[394406728,1763535057436,-500.0,0.000283,2]
[394406729,1763535057445,-420.27885834,0.0003102,2]
[394406730,1763535057454,-51.2888535,0.00037015,10]
[394406731,1763535057466,-2671.5511465,0.00037015,10]
[394406732,1763535057475,-31066.01949941,0.00094444,120]
[394406733,1763535057486,-1872.11706706,0.00094444,120]
[394406739,1763535223531,-185.998,0.00020676,2]
[394406740,1763535223555,-183.731,0.00020676,2]
[394406741,1763535223581,-300.0,0.00021087,2]
[394406742,1763535223607,-3877.71,0.00021088,10]
[394406743,1763535223631,-3231.43,0.00021088,10]
[394406744,1763535223656,-2692.86,0.00021088,10]
[394406745,1763535223681,-2244.05,0.00021088,10]
[394406746,1763535233183,-999.0,0.00020877,2]
[394406747,1763535233210,-1870.04,0.00021088,10]
[394406748,1763535233237,-887130.96,0.00021098,2]
[394406752,1763535493639,1001.99560753,0.00040268,30]
[394406774,1763535649213,800.0,0.00040268,120]
[394406781,1763536080225,195.82,0.00014735,2]
[394406782,1763536112555,215.84278451,0.00040261,30]
[394406785,1763536150750,-280.65272647,0.00015809,2]
[394406786,1763536150776,-150.0,0.00017118,2]
[394406787,1763536150802,-177.0,0.00019118,2]
[394406788,1763536150827,-300.0,0.00021024,2]
[394406789,1763536150852,-1558.36,0.00021025,10]
[394406790,1763536150880,-500.0,0.00021034,2]
[394406791,1763536150906,-500.0,0.00021034,2]
[394406792,1763536150931,-500.0,0.00021034,2]
[394406793,1763536150959,-500.0,0.00021034,2]
[394406794,1763536150984,-500.0,0.00021034,2]
[394406795,1763536151008,-609.01066256,0.00021034,2]
[394406796,1763536151036,-884424.97661097,0.00021035,2]
[394406820,1763536232220,-274.82942037,0.00021035,2]
[394406821,1763536232231,-816.87,0.00021035,2]
[394406822,1763536232261,-1165.4489358,0.00021035,2]
[394407218,1763536238106,-1028.6777469,0.00021035,2]
[394407222,1763536238144,-2289.19728596,0.00021035,2]
[394407224,1763536238153,-300.0,0.00021097,2]
[394407225,1763536238162,-1095.0,0.00021097,2]
[394407227,1763536238171,-31833.5886462,0.00021098,2]
[394407229,1763536238180,-204.0,0.00021118,2]
[394407231,1763536238190,-1246.0,0.00021238,2]
[394407233,1763536238199,-1246.0,0.00021253,2]
[394407235,1763536238208,-50000.0,0.00021395,2]
[394407237,1763536238218,-1246.0,0.00021396,2]
[394407239,1763536238227,-500.0,0.00021508,2]
[394407241,1763536238236,-519.28739441,0.00021508,2]
[394407243,1763536238245,-300.0,0.00021509,20]
[394407245,1763536238254,-300.0,0.00021509,20]
[394407247,1763536238263,-300.0,0.00021509,20]
[394407249,1763536238277,-300.0,0.00021509,20]
[394407251,1763536238286,-300.0,0.00021509,20]
[394407253,1763536238296,-300.0,0.00021509,20]
[394407255,1763536238305,-300.0,0.00021509,20]
[394407257,1763536238315,-1246.0,0.00021579,2]
[394407259,1763536238323,-1246.0,0.00021776,2]
[394407261,1763536238333,-168.0,0.0002191,2]
[394407263,1763536238343,-150.0,0.0002193,2]
[394407266,1763536238362,-150.278,0.0002193,2]
[394407268,1763536238372,-1246.0,0.00021947,2]
[394407270,1763536238381,-168.0,0.00021959,2]
[394407272,1763536238391,-163.43,0.00022,7]
[394407274,1763536238400,-500.0,0.00022011,2]
[394407276,1763536238409,-500.0,0.00022011,2]
[394407278,1763536238419,-500.0,0.00022078,2]
[394407280,1763536238428,-500.0,0.00022078,2]
[394407282,1763536238438,-640.77,0.00022087,10]
[394407284,1763536238447,-500.0,0.00022096,2]
[394407286,1763536238457,-1246.0,0.00022097,2]
[394407288,1763536238466,-1246.0,0.00022131,2]
[394407290,1763536238475,-456.93,0.00022191,2]
[394407292,1763536238485,-500.0,0.00022291,2]
[394407294,1763536238494,-1246.0,0.00022347,2]
[394407296,1763536238504,-1246.0,0.00022355,2]
[394407298,1763536238513,-168.0,0.00022364,2]
[394407300,1763536238522,-500.0,0.00022376,2]
[394407302,1763536238534,-1246.0,0.00022401,2]
[394407304,1763536238544,-1246.0,0.00022418,2]
[394407306,1763536238553,-500.0,0.00022437,2]
[394407308,1763536238562,-500.0,0.00022437,2]
[394407310,1763536238571,-506.7958722,0.00022437,2]
[394407312,1763536238580,-500.0,0.00022437,2]
[394407314,1763536238590,-500.0,0.00022437,2]
[394407316,1763536238599,-160.0,0.00022459,2]
[394407318,1763536238608,-400.87691731,0.00022459,2]
[394407320,1763536238617,-1246.0,0.00022459,2]
[394407322,1763536238626,-1246.0,0.00022496,2]
[394407324,1763536238637,-1003.87177589,0.00022559,2]
[394407326,1763536238646,-502.13900009,0.00022559,2]
[394407328,1763536238655,-1000.0,0.00022626,2]
[394407329,1763536238664,-1000.0,0.00022626,2]
[394407332,1763536238674,-500.0,0.00022711,2]
[394407334,1763536238684,-168.0,0.00022764,2]
[394407335,1763536238693,-1000.0,0.00022839,2]
[394407337,1763536238703,-502.36654671,0.00022924,2]
[394407339,1763536238712,-407.0,0.00022947,2]
[394407341,1763536238722,-500.0,0.00022985,2]
[394407343,1763536238731,-263.88541376,0.00022985,2]
[394407345,1763536238740,-532.65714763,0.00022985,2]
[394407347,1763536238749,-1246.0,0.00023016,2]
[394407349,1763536238759,-1246.0,0.0002305,2]
[394407351,1763536238769,-231.0,0.00023118,2]
[394407353,1763536238778,-168.0,0.00023151,2]
[394407355,1763536238787,-504.53701196,0.00023174,2]
[394407357,1763536238797,-1500.0,0.00023174,2]
[394407359,1763536238807,-168.0,0.00023266,2]
[394407361,1763536238817,-429.59951479,0.00023387,2]
[394407364,1763536238828,-1246.0,0.00023412,2]
[394407366,1763536238837,-1246.0,0.0002343,2]
[394407368,1763536238848,-168.0,0.00023443,2]
[394407369,1763536238858,-1486.75727207,0.00023722,2]
[394407371,1763536238867,-495.42104687,0.00024087,2]
[394407374,1763536238877,-6305.06629971,0.00024263,2]
[394407376,1763536238888,-6305.06629971,0.00024378,2]
[394407378,1763536238898,-314.0,0.00024481,2]
[394407380,1763536238908,-6305.06629971,0.00024493,2]
[394407381,1763536238917,-6305.06629971,0.00024608,2]
[394407384,1763536238927,-6305.06629971,0.00024724,2]
[394407385,1763536238937,-369.0,0.00024772,2]
[394407387,1763536238947,-659.82,0.000248,14]
[394407389,1763536238958,-6305.06629971,0.00024839,2]
[394407391,1763536238967,-500.0,0.00024873,2]
[394407393,1763536238977,-500.0,0.00024873,2]
[394407395,1763536238986,-507.6968814,0.00024873,2]
[394407397,1763536238995,-500.0,0.00024873,2]
[394407399,1763536239005,-500.0,0.00024873,2]
[394407401,1763536239014,-506.33799268,0.00024873,2]
[394407403,1763536239023,-153.84547182,0.00024873,2]
[394407405,1763536239032,-500.0,0.00024873,2]
[394407407,1763536239042,-500.0,0.00024873,2]
[394407409,1763536239051,-500.0,0.00024873,2]
[394407411,1763536239061,-500.0,0.00024873,2]
[394407413,1763536239070,-500.0,0.00024873,2]
[394407415,1763536239079,-500.0,0.00024873,2]
[394407417,1763536239089,-500.0,0.00024873,2]
[394407419,1763536239098,-500.0,0.00024873,2]
[394407421,1763536239108,-506.10151376,0.00024873,2]
[394407423,1763536239117,-500.0,0.00024873,2]
[394407425,1763536239126,-500.0,0.00024873,2]
[394407427,1763536239135,-263.70606165,0.00024873,2]
[394407429,1763536239145,-504.42164991,0.00024873,2]
[394407431,1763536239154,-500.0,0.00024873,2]
[394407433,1763536239164,-569653.042324,0.000249,2]
[394407436,1763536239173,-163.43,0.000249,7]
[394407438,1763536239183,-150.0,0.0002493,2]
[394407440,1763536239192,-150.0,0.0002493,2]
[394407442,1763536239201,-150.0,0.0002493,2]
[394407444,1763536239211,-160.0,0.00024947,2]
[394407445,1763536239220,-6305.06629971,0.00024954,2]
[394407447,1763536239230,-4217.1659188,0.00025069,2]
[394407449,1763536239243,-360.82507419,0.00025069,2]
[394407583,1763536240519,-150.0,0.00021066,2]
[394407585,1763536240529,-177.0,0.00023066,2]
[394407587,1763536240539,-500.0,0.00023259,2]
[394407589,1763536240549,-500.0,0.00023533,2]
[394407592,1763536240558,-500.0,0.00023807,2]
[394407594,1763536240570,-500.0,0.00024081,2]
[394407596,1763536240580,-500.0,0.00024355,2]
[394407598,1763536240589,-1727.07530672,0.00025069,2]
[394407600,1763536240599,-1009.1349675,0.00025163,2]
[394407760,1763536246536,-1877.0912402,0.00021018,2]
[394407761,1763536246547,-162.92061628,0.00024628,2]
[394407762,1763536246578,-337.07938372,0.00024628,2]
[394407763,1763536246587,-500.0,0.00024902,2]
[394407764,1763536246598,-204.0,0.00025066,2]
[394407765,1763536246608,-8482.65493121,0.00025163,2]
[394407766,1763536246619,-1750.3096139,0.00025163,2]
[394407776,1763536257065,-560.0,0.00025152,10]
[394407777,1763536257081,-631.84,0.00025152,10]
[394407778,1763536257093,-56564.44868819,0.00025163,2]
[394407779,1763536281581,5000.0,0.00040261,120]
[394407780,1763536282352,5185.0,0.00040261,30]
[394407781,1763536282975,5376.845,0.00040261,80]
[394407782,1763536283659,5575.788265,0.00040261,30]
[394407783,1763536284468,301.56366555,0.00040261,120]
[394407784,1763536287151,250.0,0.00040261,120]
[394407786,1763536810214,443.28365377,0.00040215,120]
[394407787,1763536886294,582.27849,0.00013699,2]
[394407790,1763537039911,500.0,0.00040215,30]
[394407791,1763537040184,500.0,0.00040215,30]
[394407792,1763537040484,500.0,0.00040215,30]
[394407793,1763537040816,500.0,0.00040215,30]
[394407794,1763537041046,500.0,0.00040215,30]
[394407795,1763537041300,500.0,0.00040215,30]
[394407796,1763537041685,500.0,0.00040215,30]
[394407797,1763537041881,500.0,0.00040215,30]
[394407798,1763537042119,500.0,0.00040215,30]
[394407799,1763537042353,500.0,0.00040215,30]
[394407800,1763537042585,500.0,0.00040215,120]
[394407801,1763537042899,500.0,0.00040215,120]
[394407802,1763537043137,500.0,0.00040215,120]
[394407803,1763537043362,500.0,0.00040215,120]
[394407804,1763537043596,500.0,0.00040215,120]
[394407805,1763537043828,500.0,0.00040215,120]
[394407806,1763537044092,216.73323361,0.00040215,120]
[394407807,1763537209222,2250.18,0.00032877,120]
[394407898,1763537432564,-187.22651062,0.00015809,2]
[394407901,1763537432573,-163.3755486,0.00015809,2]
[394407904,1763537432583,-89.73071876,0.00016,2]
[394407933,1763537438340,-124.83401851,0.00016,2]
[394407935,1763537438350,-150.0,0.0001647,2]
[394407937,1763537438359,-1200.0,0.00016998,2]
[394407939,1763537438369,-300.0,0.00016998,2]
[394407941,1763537438379,-500.0,0.00016999,2]
[394407943,1763537438388,-611.57255394,0.00016999,2]
[394407945,1763537438398,-500.0,0.00016999,2]
[394407947,1763537438407,-528.81910856,0.00016999,2]
[394407949,1763537438417,-500.0,0.00016999,2]
[394407951,1763537438426,-500.0,0.00016999,2]
[394407953,1763537438436,-500.0,0.00016999,2]
[394407955,1763537438446,-500.0,0.00016999,2]
[394407957,1763537438456,-45839.12519212,0.00017,2]
[394407959,1763537438465,-300.0,0.00017339,2]
[394407961,1763537438474,-2123.96963575,0.000176,2]
[394407963,1763537438483,-50000.0,0.00017973,2]
[394407965,1763537438492,-506.7958722,0.00017973,2]
[394407967,1763537438501,-500.0,0.00017973,2]
[394407969,1763537438511,-500.0,0.00017973,2]
[394407971,1763537438523,-500.0,0.00017973,2]
[394407973,1763537438533,-500.0,0.00017973,2]
[394407975,1763537438542,-506.33799268,0.00017973,2]
[394407977,1763537438551,-500.0,0.00017973,2]
[394407979,1763537438561,-500.0,0.00017973,2]
[394407981,1763537438570,-500.0,0.00017973,2]
[394407983,1763537438580,-500.0,0.00017973,2]
[394407985,1763537438589,-500.0,0.00017973,2]
[394407987,1763537438599,-500.0,0.00017973,2]
[394407989,1763537438608,-500.0,0.00017973,2]
[394407991,1763537438618,-500.0,0.00017998,2]
[394407993,1763537438627,-500.0,0.00017998,2]
[394407995,1763537438638,-500.0,0.00017998,2]
[394407997,1763537438647,-500.0,0.00017998,2]
[394407999,1763537438660,-252.83280625,0.00017998,2]
[394408001,1763537438669,-127749.04650145,0.00018,2]
[394408003,1763537438679,-2039.79567765,0.00018,2]
[394408005,1763537438689,-177.0,0.0001847,2]
[394408008,1763537438702,-500.0,0.00018521,2]
[394408010,1763537438711,-1000.0,0.00018521,2]
[394408012,1763537438721,-1001.77337171,0.00018521,2]
[394408013,1763537438734,-1000.0,0.00018521,2]
[394408016,1763537438743,-1000.0,0.00018521,2]
[394408018,1763537438754,-1000.0,0.00018521,2]
[394408019,1763537438763,-1000.0,0.00018521,2]
[394408022,1763537438773,-1000.0,0.00018521,2]
[394408023,1763537438782,-1000.0,0.00018521,2]
[394408025,1763537438792,-502.36654671,0.00018521,2]
[394408028,1763537438801,-420.0,0.00018566,2]
[394408030,1763537438811,-1095.0,0.00018658,2]
[394408032,1763537438820,-500.0,0.00018795,2]
[394408034,1763537438829,-6096.50590769,0.0001894,2]
[394408036,1763537438839,-1107.98317633,0.00019068,2]
[394408038,1763537438848,-1500.0,0.00019068,2]
[394408040,1763537438857,-1514.91139396,0.00019068,2]
[394408041,1763537438866,-1500.0,0.00019068,2]
[394408043,1763537438877,-1500.0,0.00019068,2]
[394408046,1763537438891,-1500.0,0.00019068,2]
[394408048,1763537438901,-1500.0,0.00019068,2]
[394408050,1763537438910,-500.0,0.00019068,2]
[394408052,1763537438919,-153.84547182,0.00019178,2]
[394408054,1763537438928,-500.0,0.00019342,2]
[394408056,1763537438937,-6096.50590769,0.00019427,2]
[394408058,1763537438947,-500.0,0.00019616,2]
[394408060,1763537438956,-1407.68093566,0.00019616,2]
[394408062,1763537438965,-2000.0,0.00019616,2]
[394408064,1763537438974,-2000.0,0.00019616,2]
[394408066,1763537438983,-2000.0,0.00019616,2]
[394408067,1763537438992,-162.01282537,0.00019616,2]
[394408069,1763537439001,-160.0,0.00019733,2]
[394408072,1763537439010,-500.0,0.0001989,2]
[394408074,1763537439020,-6096.50590769,0.00019914,2]
[394408076,1763537439029,-100000.0,0.0001999,2]
[394408077,1763537439038,-501.38434486,0.0002,2]
[394408080,1763537439048,-241.88472765,0.00020164,2]
[394408082,1763537439058,-2500.0,0.00020164,2]
[394408084,1763537439069,-1603.96648235,0.00020164,2]
[394408086,1763537439079,-2500.0,0.00020164,2]
[394408088,1763537439089,-582.27849,0.00020187,2]
[394408090,1763537439098,-500.0,0.00020277,2]
[394408092,1763537439108,-506.10151376,0.00020277,2]
[394408094,1763537439117,-500.0,0.00020277,2]
[394408096,1763537439127,-504.42164991,0.00020277,2]
[394408098,1763537439136,-500.0,0.00020277,2]
[394408100,1763537439145,-263.70606165,0.00020277,2]
[394408102,1763537439155,-500.0,0.00020277,2]
[394408104,1763537439164,-287.0,0.00020278,2]
[394408106,1763537439174,-260.0,0.00020281,2]
[394408108,1763537439184,-6096.50590769,0.00020401,2]
[394408110,1763537439193,-327.0,0.0002046,2]
[394408112,1763537439202,-204.0,0.0002047,2]
[394408114,1763537439211,-394.0,0.00020639,2]
[394408116,1763537439220,-3000.0,0.00020712,2]
[394408118,1763537439230,-3000.0,0.00020712,2]
[394408120,1763537439239,-1000.0,0.00020825,2]
[394408122,1763537439250,-504.69879942,0.00020825,2]
[394408124,1763537439260,-360.0,0.00020829,2]
[394408126,1763537439271,-6096.50590769,0.00020887,2]
[394408128,1763537439281,-185.998,0.00020981,2]
[394408130,1763537439290,-3500.0,0.0002126,2]
[394408133,1763537439300,-3500.0,0.0002126,2]
[394408135,1763537439309,-333620.15806912,0.00021309,2]
[394408137,1763537439322,-148421.84024915,0.00021309,2]
[394408348,1763537465351,500.0,0.00040215,30]
[394408349,1763537465431,500.0,0.00040215,30]
[394408350,1763537465681,500.0,0.00040215,30]
[394408351,1763537465964,509.52987001,0.00040215,30]
[394408353,1763537528508,1531.19915679,0.00040215,120]
[394408360,1763538007273,151.0,0.00040196,120]
[394408361,1763538007912,151.0,0.00040196,120]
[394408362,1763538008567,151.0,0.00040196,120]
[394408363,1763538009218,151.0,0.00040196,120]
[394408364,1763538009872,151.0,0.00040196,120]
[394408365,1763538010560,151.0,0.00040196,120]
[394408366,1763538011229,151.0,0.00040196,120]
[394408367,1763538012820,151.0,0.00040196,120]
[394408368,1763538013445,151.0,0.00040196,120]
[394408369,1763538014165,151.0,0.00040196,120]
[394408370,1763538014877,151.0,0.00040196,120]
[394408371,1763538015578,151.0,0.00040196,120]
[394408372,1763538016194,151.0,0.00040196,120]
[394408373,1763538016832,151.0,0.00040196,120]
[394408375,1763538413603,164.48957762,0.000328,120]
[394408377,1763538615241,-177.1166495,0.00015691,2]
[394408378,1763538615266,-800.0,0.000157,2]
[394408379,1763538615287,-150.0,0.00015716,2]
[394408380,1763538615309,-1200.0,0.0001574,2]
[394408381,1763538615330,-300.0,0.0001574,2]
[394408382,1763538615351,-300.0,0.0001574,2]
[394408383,1763538615373,-300.0,0.0001574,2]
[394408384,1763538615394,-300.0,0.0001574,2]
[394408385,1763538615416,-1200.0,0.0001574,2]
[394408386,1763538615436,-12561.3638389,0.00015741,2]
[394408387,1763538615456,-190.894295,0.00015791,2]
[394408388,1763538615476,-206.57223267,0.000158,2]
[394408389,1763538615498,-272.68909728,0.00015809,2]
[394408390,1763538615520,-175.44717498,0.00015809,2]
[394408391,1763538615540,-50000.0,0.00015949,2]
[394408392,1763538615561,-331.50091647,0.00016048,2]
[394408393,1763538615583,-500.0,0.00016048,2]
[394408394,1763538615604,-500.0,0.00016048,2]
[394408395,1763538615624,-268.08938063,0.00016048,2]
[394408396,1763538615644,-500.0,0.00016048,2]
[394408397,1763538615666,-500.0,0.00016048,2]
[394408398,1763538615688,-500.0,0.00016048,2]
[394408399,1763538615708,-500.0,0.00016048,2]
[394408400,1763538615727,-500.0,0.00016048,2]
[394408401,1763538615749,-500.0,0.00016048,2]
[394408402,1763538615775,-500.0,0.00016048,2]
[394408403,1763538615794,-500.0,0.00016048,2]
[394408404,1763538615813,-500.0,0.00016048,2]
[394408405,1763538615834,-500.0,0.00016048,2]
[394408406,1763538615853,-169.92864099,0.00016048,2]
[394408407,1763538615873,-238.72458354,0.00016048,2]
[394408408,1763538615899,-500.0,0.00016048,2]
[394408409,1763538615919,-500.0,0.00016048,2]
[394408410,1763538615941,-500.0,0.00016048,2]
[394408411,1763538615961,-500.0,0.00016048,2]
[394408412,1763538615982,-500.0,0.00016048,2]
[394408413,1763538616001,-260.53754016,0.00016048,2]
[394408414,1763538616030,-500.0,0.00016048,2]
[394408415,1763538616052,-500.0,0.00016048,2]
[394408416,1763538616078,-500.00000006,0.00016048,2]
[394408417,1763538616100,-500.0,0.00016048,2]
[394408418,1763538616122,-500.0,0.00016048,2]
[394408419,1763538616149,-500.0,0.00016048,2]
[394408420,1763538616171,-500.0,0.00016048,2]
[394408421,1763538616190,-500.0,0.00016048,2]
[394408422,1763538616210,-500.0,0.00016048,2]
[394408423,1763538616231,-500.0,0.00016048,2]
[394408424,1763538616258,-500.0,0.00016048,2]
[394408425,1763538616284,-500.0,0.00016048,2]
[394408426,1763538616305,-500.0,0.00016048,2]
[394408427,1763538616335,-500.0,0.00016048,2]
[394408428,1763538616357,-500.0,0.00016048,2]
[394408429,1763538616377,-500.0,0.00016048,2]
[394408430,1763538616400,-500.0,0.00016048,2]
[394408431,1763538616428,-500.0,0.00016048,2]
[394408432,1763538616449,-500.0,0.00016048,2]
[394408433,1763538616470,-500.0,0.00016048,2]
[394408434,1763538616491,-500.0,0.00016048,2]
[394408435,1763538616516,-500.0,0.00016048,2]
[394408436,1763538616538,-246.2019154,0.00016048,2]
[394408437,1763538616561,-500.0,0.00016048,2]
[394408438,1763538616588,-500.0,0.00016048,2]
[394408439,1763538616727,-500.0,0.00016048,2]
[394408440,1763538616754,-500.0,0.00016048,2]
[394408441,1763538616774,-500.0,0.00016048,2]
[394408442,1763538616796,-500.0,0.00016048,2]
[394408443,1763538616822,-500.0,0.00016048,2]
[394408444,1763538616844,-500.0,0.00016048,2]
[394408445,1763538616867,-500.0,0.00016048,2]
[394408446,1763538616886,-500.0,0.00016048,2]
[394408447,1763538616916,-500.0,0.00016048,2]
[394408448,1763538616940,-500.0,0.00016048,2]
[394408449,1763538616963,-500.0,0.00016048,2]
[394408450,1763538616993,-500.0,0.00016048,2]
[394408451,1763538617016,-500.0,0.00016048,2]
[394408452,1763538617045,-500.0,0.00016048,2]
[394408453,1763538617067,-500.0,0.00016048,2]
[394408454,1763538617090,-500.0,0.00016048,2]
[394408455,1763538617119,-500.0,0.00016048,2]
[394408456,1763538617143,-500.0,0.00016048,2]
[394408457,1763538617186,-500.0,0.00016048,2]
[394408458,1763538617212,-500.0,0.00016048,2]
[394408459,1763538617242,-500.0,0.00016048,2]
[394408460,1763538617264,-500.0,0.00016048,2]
[394408461,1763538617288,-500.0,0.00016048,2]
[394408462,1763538617318,-500.0,0.00016048,2]
[394408463,1763538617342,-500.0,0.00016048,2]
[394408464,1763538617364,-500.0,0.00016048,2]
[394408465,1763538617388,-500.0,0.00016048,2]
[394408466,1763538617417,-500.0,0.00016048,2]
[394408467,1763538617439,-500.0,0.00016048,2]
[394408468,1763538617469,-500.0,0.00016048,2]
[394408469,1763538617493,-500.0,0.00016048,2]
[394408470,1763538617517,-500.0,0.00016048,2]
[394408471,1763538617546,-500.0,0.00016048,2]
[394408472,1763538617570,-500.0,0.00016048,2]
[394408473,1763538617592,-500.0,0.00016048,2]
[394408474,1763538617619,-500.0,0.00016048,2]
[394408475,1763538617641,-500.0,0.00016048,2]
[394408476,1763538617668,-500.0,0.00016048,2]
[394408477,1763538617690,-500.0,0.00016048,2]
[394408478,1763538617718,-500.0,0.00016048,2]
[394408479,1763538617741,-500.0,0.00016048,2]
[394408480,1763538617770,-500.0,0.00016048,2]
[394408481,1763538617792,-500.0,0.00016048,2]
[394408482,1763538617818,-500.0,0.00016048,2]
[394408483,1763538617846,-500.0,0.00016048,2]
[394408484,1763538617868,-500.0,0.00016048,2]
[394408485,1763538617894,-500.0,0.00016048,2]
[394408486,1763538617918,-500.0,0.00016048,2]
[394408487,1763538617945,-500.0,0.00016048,2]
[394408488,1763538617971,-500.0,0.00016048,2]
[394408489,1763538617996,-500.0,0.00016048,2]
[394408490,1763538618025,-500.0,0.00016048,2]